{"text_format":"2","workbook":"xlsx","n_sheets":3,"sheets":["Blad1","Blad2","Blad3"],"not_rendered":{"charts":4,"images":0,"macros":0,"external_links":0,"defined_names":1,"comments":0,"pivot_tables":0},"unopened":[],"bounds":{"document_bytes":16777216,"sheet_cells":100000,"run_cost":"one","rows_first":2000,"rows_last":500,"rows_between":2000,"halvings":0,"cell_chars":16384,"cell_head_chars":4096},"cells_cut":0,"cells_raw":0,"read":"whole","date_system":"1900"}

{"sheet":"Blad1","index":0,"n_rows":106,"n_cols":5,"rows_kept":106,"cut":false,"hidden":false,"merged":[]}
[null,null,"YSQ-S3"]
[null,null,"© 2020 Rijkeboer, M.M., Videler, A.C. , Rossi, G., van Alphen, S.P.J., & Legra, M.J.H. Nederlandse vertaling van de Young Schema Questionnaire - Short Form Version 3 (YSQ-3S) van Young, J.E., & Brown, G. (2005)."]
[]
[null,null,"Dutch translation approved by the International Society of Schema Therapy (ISST) and G. Brown, one of the original authors."]
[]
[null,null,"Naam:                                                                                                                                Datum: "]
[null,null,"Geboortedatum:"]
[null,null,"Man / Vrouw "]
[]
[null,null,"Instructies"]
[null,null,"Hieronder volgen een aantal beweringen die men kan gebruiken om zichzelf te beschrijven. Lees elke bewering en kijk hoe goed deze u, in het afgelopen jaar, beschrijft. Als u niet zeker bent van uw antwoord, baseer uw antwoord dan op wat u emotioneel voelt en niet op wat u denkt dat waar is. "]
[null,null,"Een aantal beweringen vragen naar uw relaties met uw ouders of partner. Als één of meerdere van deze personen inmiddels overleden zijn, baseer dan uw antwoord op hoe uw relatie was toen zij nog leefden. Als u momenteel geen partner heeft, maar wel partners in het verleden hebt gehad, baseer dan uw antwoord op uw meest recente betekenisvolle partner."]
[null,null,"Kies vervolgens de score uit de cijfers 1-6 die op u van toepassing is en schrijf dit nummer op in de ruimte voor elke bewering."]
[]
[null,null,"Vragenlijst"]
["Nr.","Score",null,"5/6"]
[1,null,"Meestal was er niemand die voor me zorgde, dingen met me deelde of die het echt kon schelen wat er met me gebeurde.",{"$f":"IF(OR(B17=5,B17=6),1,0)","v":0},"Score-schaal"]
[2,null,"Ik merk dat ik mij vastklamp aan mensen om wie ik veel geef, omdat ik bang ben dat ze me zullen verlaten.",{"$f":"IF(OR(B18=5,B18=6),1,0)","v":0},"1 = helemaal niet op mij van toepassing "]
[3,null,"Ik denk dat mensen misbruik van me zullen maken.",0,"2 = meestal niet op mij van toepassing"]
[4,null,"Ik pas er niet bij.",0,"3 = iets meer wel dan niet op mij van toepassing"]
[5,null,"Geen enkele man of vrouw tot wie ik mij aangetrokken voel, zou nog van me kunnen houden, zodra hij of zij mijn tekortkomingen leert kennen.",0,"4 = gemiddeld op mij van toepassing"]
[6,null,"Bijna niets van wat ik doe in mijn werk (of studie) haalt het bij wat andere mensen kunnen.",0,"5 = meestal op mij van toepassing"]
[7,null,"Ik voel me niet in staat me alleen te redden in het dagelijkse leven.",0,"6 = geheel op mij van toepassing"]
[8,null,"Ik kan maar niet aan het gevoel ontkomen dat er iets ergs staat te gebeuren.",0]
[9,null,"Ik ben niet in staat geweest me los te maken van mijn ouder(s) zoals andere van mijn leeftijd dat wel lijken te hebben gedaan.",0]
[10,null,"Wanneer ik zou doen wat ik wil, vraag ik alleen maar om moeilijkheden.",0]
[11,null,"Uiteindelijk ben ik meestal degene die de zorg op zich neemt van mensen met wie ik me verbonden voel.",0]
[12,null,"Ik ben te verlegen om positieve gevoelens aan anderen te tonen (bv. genegenheid tonen, laten merken dat ik om iemand geef).",0]
[13,null,"Ik moet de beste zijn in bijna alles wat ik doe; ik accepteer geen tweede plaats.",0]
[14,null,"Ik heb grote moeite een weigering te accepteren als ik iets van andere mensen wil.",0]
[15,null,"Ik kan er maar niet toe komen om routinewerk te doen of vervelende taken af te maken.",0]
[16,null,"Geld hebben en belangrijke mensen kennen zorgen ervoor dat ik me de moeite waard voel.",0]
[17,null,"Zelfs als het goed lijkt te gaan, heb ik het gevoel dat dat slechts tijdelijk is.",0]
[18,null,"Als ik een fout maak, verdien ik het om gestraft te worden.",0]
[19,null,"Over het algemeen was er niemand die mij warmte, geborgenheid en genegenheid gaf.",0]
[20,null,"Ik heb andere mensen zó hard nodig dat ik bang ben ze te verliezen.",0]
[21,null,"Ik moet bij andere mensen op mijn hoede blijven, anders zullen ze me opzettelijk kwetsen.",0]
[22,null,"Ik ben wezenlijk anders dan anderen.",0]
[23,null,"Niemand van de mensen tot wie ik me aangetrokken voel, zou nog bevriend met me willen zijn, als hij/zij me echt zou kennen.",0]
[24,null,"Zodra het op presteren aankomt, ben ik tot weinig in staat.",0]
[25,null,"Ik vind mijzelf in het dagelijks functioneren een afhankelijk persoon.",0]
[26,null,"Ik denk dat er ieder moment een ramp (in de natuur, of van criminele, financiële of medische aard) kan gebeuren.",0]
[27,null,"Mijn ouder(s) en ik hebben de neiging om teveel betrokken te zijn bij elkaars levens en problemen.",0]
[28,null,"Als ik niet toegeef aan de wensen van anderen, pakken ze me op de één of andere manier terug of wijzen ze me af.",0]
[29,null,"Ik ben een goed mens omdat ik meer rekening houd met anderen dan met mezelf.",0]
[30,null,"Ik schaam me ervoor om mijn gevoelens naar anderen te uiten.",0,"Score-schaal"]
[31,null,"Ik probeer mijn uiterste best te doen; ik neem geen genoegen met ‘goed genoeg’.",0,"1 = helemaal niet op mij van toepassing "]
[32,null,"Ik ben bijzonder en zou veel van de beperkingen, die voor andere mensen gelden, niet hoeven te accepteren.",0,"2 = meestal niet op mij van toepassing"]
[33,null,"Als het me niet lukt een gesteld doel te halen, raak ik gemakkelijk gefrustreerd en geef ik het op.",0,"3 = iets meer wel dan niet op mij van toepassing"]
[34,null,"Prestaties zijn voor mij het meest waardevol als andere mensen ze opmerken.",0,"4 = gemiddeld op mij van toepassing"]
[35,null,"Als er iets goeds gebeurt, maak ik me zorgen dat er waarschijnlijk iets ergs zal volgen.",0,"5 = meestal op mij van toepassing"]
[36,null,"Als ik niet mijn uiterste best doe, kan ik verwachten dat ik verlies zal lijden.",0,"6 = geheel op mij van toepassing"]
[37,null,"Ik heb zelden het gevoel gehad dat ik bijzonder ben voor iemand.",0]
[38,null,"Ik maak me zorgen dat de mensen die me dierbaar zijn, mij in de steek zullen laten.",0]
[39,null,"Het is slechts een kwestie van tijd voordat iemand me bedriegt.",0]
[40,null,"Ik hoor nergens bij; ik ben een eenling.",0]
[41,null,"Ik ben de liefde, de aandacht en het respect van anderen niet waard.",0]
[42,null,"De meeste mensen kunnen meer dan ik op het gebied van werk en prestaties.",0]
[43,null,"Het ontbreekt mij aan gezond verstand.",0]
[44,null,"Ik ben bang aangevallen te worden.",0]
[45,null,"Het is voor mijn ouder(s) en mij erg moeilijk om zeer persoonlijke zaken voor onszelf te houden, zonder ons daarover schuldig of verraden te voelen.",0]
[46,null,"In relaties laat ik de ander de baas zijn.",0]
[47,null,"Ik ben zo druk met anderen om wie ik geef, dat ik weinig tijd voor mijzelf overhoud.",0]
[48,null,"Ik vind het moeilijk om warm en spontaan te zijn.",0]
[49,null,"Ik moet aan al mijn verantwoordelijkheden voldoen.",0]
[50,null,"Ik vind het heel vervelend als ik beperkt of verhinderd word om te doen wat ik wil.",0]
[51,null,"Ik vind het erg moeilijk om iets aangenaams, wat ik meteen kan krijgen, op te offeren voor een doel dat nog ver weg is.",0]
[52,null,"Als ik weinig aandacht van anderen krijg voel ik me minder belangrijk.",0]
[53,null,"Je kunt niet voorzichtig genoeg zijn; er zal bijna altijd iets misgaan.",0]
[54,null,"Als ik mijn werk niet goed doe, moet ik de gevolgen daarvan ondergaan.",0]
[55,null,"Er zijn in mijn leven maar weinig mensen geweest die echt naar mij luisterden, me begrepen of die oog hadden voor mijn ware behoeften en gevoelens.",0]
[56,null,"Wanneer ik merk dat iemand om wie ik geef, afstand van me neemt, word ik wanhopig.",0]
[57,null,"Ik ben vrij wantrouwend over andermans motieven.",0]
[58,null,"Ik voel me vervreemd van andere mensen.",0]
[59,null,"Ik voel dat ik iemand ben waar niemand van kan houden.",0]
[60,null,"Ik heb niet zoveel talent als de meeste mensen in hun werk.",0,"Score-schaal"]
[61,null,"Mijn oordeel in alledaagse situaties is niet betrouwbaar.",0,"1 = helemaal niet op mij van toepassing "]
[62,null,"Ik ben bang dat ik al mijn geld kwijtraak en arm word.",0,"2 = meestal niet op mij van toepassing"]
[63,null,"Mijn ouder(s) zijn vaak zo overbetrokken en opdringerig, dat ik niet mijn eigen leven kan leiden.",0,"3 = iets meer wel dan niet op mij van toepassing"]
[64,null,"Ik heb altijd anderen keuzes voor me laten maken, dus ik weet werkelijk niet wat ik zelf wil.",0,"4 = gemiddeld op mij van toepassing"]
[65,null,"Ik ben altijd degene die luistert naar de problemen van anderen.",0,"5 = meestal op mij van toepassing"]
[66,null,"Ik houd me zo in de hand, dat andere mensen denken dat ik geen gevoelens heb.",{"$f":"IF(OR(B82=5,B82=6),1,0)","v":0},"6 = geheel op mij van toepassing"]
[67,null,"Ik voel me constant onder druk staan om te presteren en dingen gedaan te krijgen.",0]
[68,null,"Ik vind dat ik niet hoef te voldoen aan de normale regels en afspraken.",0]
[69,null,"Ik kan mezelf er niet toe zetten dingen te doen die ik vervelend vind, ook al weet ik dat het voor mijn eigen bestwil is.",0]
[70,null,"Als ik opmerkingen maak tijdens een vergadering of voorgesteld word in een sociale situatie, vind ik het belangrijk om erkenning en bewondering te krijgen.",0]
[71,null,"Hoe hard ik ook werk, ik maak me zorgen dat ik financieel in de problemen kom en bijna alles verlies.",0]
[72,null,"Het maakt niet uit waarom ik een fout maak. Als ik iets verkeerd doe, moet ik daarvoor de prijs betalen.",0]
[73,null,"Op momenten dat ik niet wist wat ik moest doen, was er zelden een sterk persoon die me wijze raad kon geven of me op weg kon helpen.",0]
[74,null,"Soms ben ik zo bang dat mensen me verlaten, dat ik ze juist wegjaag.",0]
[75,null,"Meestal ben ik op mijn hoede voor de verborgen beweegredenen van mensen.",0]
[76,null,"Ik voel me in groepen altijd een buitenstaander.",0]
[77,null,"In mijn diepste wezen ben ik te verwerpelijk om mezelf aan anderen bloot te geven.",0]
[78,null,"In mijn werk of studie ben ik niet zo intelligent als de meeste mensen.",0]
[79,null,"Ik heb geen vertrouwen in mijn vermogen om alledaagse problemen op te lossen.",0]
[80,null,"Ik ben bang dat ik een ernstige ziekte onder de leden heb, ook al is er door de dokter niets ernstigs geconstateerd.",0]
[81,null,"Ik heb vaak het idee dat ik geen eigen identiteit heb ten opzichte van mijn ouder(s) of partner.",0]
[82,null,"Ik vind het erg moeilijk om te eisen dat mijn rechten worden gerespecteerd en dat er rekening wordt gehouden met mijn gevoelens.",0]
[83,null,"Andere mensen vinden dat ik teveel doe voor anderen en te weinig voor mijzelf.",0]
[84,null,"Mensen vinden mij emotioneel geremd.",0,"Score-schaal"]
[85,null,"Ik ben erg streng voor mijzelf en vind het moeilijk om me mijn fouten te vergeven.",0,"1 = helemaal niet op mij van toepassing "]
[86,null,"Wat ik te bieden heb, is van meer waarde dan wat andere mensen bieden.",0,"2 = meestal niet op mij van toepassing"]
[87,null,"Ik heb me bijna nooit aan mijn voornemens kunnen houden.",0,"3 = iets meer wel dan niet op mij van toepassing"]
[88,null,"Het krijgen van veel lof en complimenten zorgen ervoor dat ik me een waardevol persoon voel.",0,"4 = gemiddeld op mij van toepassing"]
[89," ","Ik maak me zorgen dat een verkeerde beslissing tot een ramp kan leiden.",0,"5 = meestal op mij van toepassing"]
[90,null,"Ik ben een slecht persoon die het verdient om gestraft te worden.",0,"6 = geheel op mij van toepassing"]

{"sheet":"Blad2","index":1,"n_rows":22,"n_cols":5,"rows_kept":22,"cut":false,"hidden":false,"merged":[]}
[null,"Results YSQ-S3"]
[null,"Rijkeboer e.a., 2020"]
[]
[null,"Schema","gemiddelde","aantal 5&6 scores","percentage 5&6 scores"]
[null,"Verlating",{"$f":"AVERAGE(Blad1!B18,Blad1!B36,Blad1!B54,Blad1!B72,Blad1!B90)","v":{"$error":"#DIV/0!"}},{"$f":"SUM(Blad1!D18,Blad1!D36,Blad1!D54,Blad1!D72,Blad1!D90)","v":0},{"$f":"D5/5*100","v":0}]
[null,"Wantrouwen",{"$f":"AVERAGE(Blad1!B19,Blad1!B37,Blad1!B55,Blad1!B73,Blad1!B91)","v":{"$error":"#DIV/0!"}},{"$f":"SUM(Blad1!D19,Blad1!D37,Blad1!D55,Blad1!D73,Blad1!D91)","v":0},0]
[null,"Minderwaardigheid/Schaamte",{"$f":"AVERAGE(Blad1!B21,Blad1!B39,Blad1!B57,Blad1!B75,Blad1!B93)","v":{"$error":"#DIV/0!"}},{"$f":"SUM(Blad1!D21,Blad1!D39,Blad1!D57,Blad1!D75,Blad1!D93)","v":0},0]
[null,"Emotioneel tekort",{"$f":"AVERAGE(Blad1!B17,Blad1!B35,Blad1!B53,Blad1!B71,Blad1!B89)","v":{"$error":"#DIV/0!"}},{"$f":"SUM(Blad1!D17,Blad1!D35,Blad1!D53,Blad1!D71,Blad1!D89)","v":0},0]
[null,"Sociaal isolement",{"$f":"AVERAGE(Blad1!B20,Blad1!B38,Blad1!B56,Blad1!B74,Blad1!B92)","v":{"$error":"#DIV/0!"}},{"$f":"SUM(Blad1!D20,Blad1!D38,Blad1!D56,Blad1!D74,Blad1!D92)","v":0},0]
[null,"Afhankelijkheid",{"$f":"AVERAGE(Blad1!B23,Blad1!B41,Blad1!B59,Blad1!B77,Blad1!B95)","v":{"$error":"#DIV/0!"}},{"$f":"SUM(Blad1!D23,Blad1!D41,Blad1!D59,Blad1!D77,Blad1!D95)","v":0},0]
[null,"Kwetsbaarheid voor ziekte en gevaar",{"$f":"AVERAGE(Blad1!B24,Blad1!B42,Blad1!B60,Blad1!B78,Blad1!B96)","v":{"$error":"#DIV/0!"}},{"$f":"SUM(Blad1!D24,Blad1!D42,Blad1!D60,Blad1!D78,Blad1!D96)","v":0},0]
[null,"Kluwen",{"$f":"AVERAGE(Blad1!B25,Blad1!B43,Blad1!B61,Blad1!B79,Blad1!B97)","v":{"$error":"#DIV/0!"}},{"$f":"SUM(Blad1!D25,Blad1!D43,Blad1!D61,Blad1!D79,Blad1!D97)","v":0},0]
[null,"Falen",{"$f":"AVERAGE(Blad1!B22,Blad1!B40,Blad1!B58,Blad1!B76,Blad1!B94)","v":{"$error":"#DIV/0!"}},{"$f":"SUM(Blad1!D22,Blad1!D40,Blad1!D58,Blad1!D76,Blad1!D94)","v":0},0]
[null,"Gebrek aan zelfcontrole",{"$f":"AVERAGE(Blad1!B31,Blad1!B49,Blad1!B67,Blad1!B85,Blad1!B103)","v":{"$error":"#DIV/0!"}},{"$f":"SUM(Blad1!D31,Blad1!D49,Blad1!D67,Blad1!D85,Blad1!D103)","v":0},0]
[null,"Gerechtigd",{"$f":"AVERAGE(Blad1!B30,Blad1!B48,Blad1!B66,Blad1!B84,Blad1!B102)","v":{"$error":"#DIV/0!"}},{"$f":"SUM(Blad1!D30,Blad1!D48,Blad1!D66,Blad1!D84,Blad1!D102)","v":0},0]
[null,"Onderwerping",{"$f":"AVERAGE(Blad1!B26,Blad1!B44,Blad1!B62,Blad1!B80,Blad1!B98)","v":{"$error":"#DIV/0!"}},{"$f":"SUM(Blad1!D26,Blad1!D44,Blad1!D62,Blad1!D80,Blad1!D98)","v":0},0]
[null,"Zelfopoffering",{"$f":"AVERAGE(Blad1!B27,Blad1!B45,Blad1!B63,Blad1!B81,Blad1!B99)","v":{"$error":"#DIV/0!"}},{"$f":"SUM(Blad1!D27,Blad1!D45,Blad1!D63,Blad1!D81,Blad1!D99)","v":0},0]
[null,"Bevestiging zoeken",{"$f":"AVERAGE(Blad1!B32,Blad1!B50,Blad1!B68,Blad1!B86,Blad1!B104)","v":{"$error":"#DIV/0!"}},{"$f":"SUM(Blad1!D32,Blad1!D50,Blad1!D68,Blad1!D86,Blad1!D104)","v":0},0]
[null,"Negativiteit",{"$f":"AVERAGE(Blad1!B33,Blad1!B51,Blad1!B69,Blad1!B87,Blad1!B105)","v":{"$error":"#DIV/0!"}},{"$f":"SUM(Blad1!D33,Blad1!D51,Blad1!D69,Blad1!D87,Blad1!D105)","v":0},0]
[null,"Emotionele geremdheid",{"$f":"AVERAGE(Blad1!B28,Blad1!B46,Blad1!B64,Blad1!B82,Blad1!B100)","v":{"$error":"#DIV/0!"}},{"$f":"SUM(Blad1!D28,Blad1!D46,Blad1!D64,Blad1!D82,Blad1!D100)","v":0},0]
[null,"Meedogenloze normen",{"$f":"AVERAGE(Blad1!B29,Blad1!B47,Blad1!B65,Blad1!B83,Blad1!B101)","v":{"$error":"#DIV/0!"}},{"$f":"SUM(Blad1!D29,Blad1!D47,Blad1!D65,Blad1!D83,Blad1!D101)","v":0},0]
[null,"Bestraffendheid",{"$f":"AVERAGE(Blad1!B34,Blad1!B52,Blad1!B70,Blad1!B88,Blad1!B106)","v":{"$error":"#DIV/0!"}},{"$f":"SUM(Blad1!D34,Blad1!D52,Blad1!D70,Blad1!D88,Blad1!D106)","v":0},0]

{"sheet":"Blad3","index":2,"n_rows":51,"n_cols":10,"rows_kept":51,"cut":false,"hidden":true,"merged":[]}
["Scoring Key YSQ-S3"]
[]
["Abandonment",null,"Mistrust",null,"Defectiveness/unlovability",null,"Emotional deprivation",null,"Social isolation/Alienation"]
["item","score","item","score","item","score","item","score","item","score"]
[2,{"$f":"Blad1!#REF!","v":{"$error":"#REF!"}},3,{"$f":"Blad1!#REF!","v":{"$error":"#REF!"}},5,{"$f":"Blad1!#REF!","v":{"$error":"#REF!"}},1,{"$f":"Blad1!#REF!","v":{"$error":"#REF!"}},4,{"$f":"Blad1!#REF!","v":{"$error":"#REF!"}}]
[20,{"$f":"Blad1!#REF!","v":{"$error":"#REF!"}},21,{"$f":"Blad1!#REF!","v":{"$error":"#REF!"}},23,{"$f":"Blad1!#REF!","v":{"$error":"#REF!"}},19,{"$f":"Blad1!#REF!","v":{"$error":"#REF!"}},22,{"$f":"Blad1!#REF!","v":{"$error":"#REF!"}}]
[38,{"$f":"Blad1!#REF!","v":{"$error":"#REF!"}},39,{"$f":"Blad1!#REF!","v":{"$error":"#REF!"}},41,{"$f":"Blad1!#REF!","v":{"$error":"#REF!"}},37,{"$f":"Blad1!#REF!","v":{"$error":"#REF!"}},40,{"$f":"Blad1!#REF!","v":{"$error":"#REF!"}}]
[54,{"$f":"Blad1!#REF!","v":{"$error":"#REF!"}},57,{"$f":"Blad1!#REF!","v":{"$error":"#REF!"}},59,{"$f":"Blad1!#REF!","v":{"$error":"#REF!"}},55,{"$f":"Blad1!#REF!","v":{"$error":"#REF!"}},58,{"$f":"Blad1!#REF!","v":{"$error":"#REF!"}}]
[74,{"$f":"Blad1!#REF!","v":{"$error":"#REF!"}},75,{"$f":"Blad1!#REF!","v":{"$error":"#REF!"}},77,{"$f":"Blad1!#REF!","v":{"$error":"#REF!"}},73,{"$f":"Blad1!#REF!","v":{"$error":"#REF!"}},76,{"$f":"Blad1!#REF!","v":{"$error":"#REF!"}}]
["mean",{"$f":"AVERAGE(B5:B9)","v":{"$error":"#REF!"}},"mean",{"$f":"AVERAGE(D5:D9)","v":{"$error":"#REF!"}},"mean",{"$f":"AVERAGE(F5:F9)","v":{"$error":"#REF!"}},"mean",{"$f":"AVERAGE(H5:H9)","v":{"$error":"#REF!"}},"mean",{"$f":"AVERAGE(J5:J9)","v":{"$error":"#REF!"}}]
["5&6-scores",{"$f":"COUNTIF(B5:B9,\">4\")","v":0},"5&6-scores",{"$f":"COUNTIF(D5:D9,\">4\")","v":0},"5&6-scores",{"$f":"COUNTIF(F5:F9,\">4\")","v":0},"5&6-scores",{"$f":"COUNTIF(H5:H9,\">4\")","v":0},"5&6-scores",{"$f":"COUNTIF(J5:J9,\">4\")","v":0}]
[]
["Practical incompetence/Dependence",null,"Vulnerability to harm/illness",null,"Enmeshment ",null,"Failure to achieve"]
["item","score","item","score","item","score","item","score"]
[7,{"$f":"Blad1!#REF!","v":{"$error":"#REF!"}},8,{"$f":"Blad1!#REF!","v":{"$error":"#REF!"}},9,{"$f":"Blad1!#REF!","v":{"$error":"#REF!"}},6,{"$f":"Blad1!#REF!","v":{"$error":"#REF!"}}]
[25,{"$f":"Blad1!#REF!","v":{"$error":"#REF!"}},26,{"$f":"Blad1!#REF!","v":{"$error":"#REF!"}},27,{"$f":"Blad1!#REF!","v":{"$error":"#REF!"}},24,{"$f":"Blad1!#REF!","v":{"$error":"#REF!"}}]
[43,{"$f":"Blad1!#REF!","v":{"$error":"#REF!"}},44,{"$f":"Blad1!#REF!","v":{"$error":"#REF!"}},45,{"$f":"Blad1!#REF!","v":{"$error":"#REF!"}},42,{"$f":"Blad1!#REF!","v":{"$error":"#REF!"}}]
[61,{"$f":"Blad1!#REF!","v":{"$error":"#REF!"}},62,{"$f":"Blad1!#REF!","v":{"$error":"#REF!"}},63,{"$f":"Blad1!#REF!","v":{"$error":"#REF!"}},60,{"$f":"Blad1!#REF!","v":{"$error":"#REF!"}}]
[79,{"$f":"Blad1!#REF!","v":{"$error":"#REF!"}},80,{"$f":"Blad1!#REF!","v":{"$error":"#REF!"}},81,{"$f":"Blad1!#REF!","v":{"$error":"#REF!"}},78,{"$f":"Blad1!#REF!","v":{"$error":"#REF!"}}]
["mean",{"$f":"AVERAGE(B15:B19)","v":{"$error":"#REF!"}},"mean",{"$f":"AVERAGE(D15:D19)","v":{"$error":"#REF!"}},"mean",{"$f":"AVERAGE(F15:F19)","v":{"$error":"#REF!"}},"mean",{"$f":"AVERAGE(H15:H19)","v":{"$error":"#REF!"}}]
["5&6-scores",{"$f":"COUNTIF(B15:B19,\">4\")","v":0},"5&6-scores",{"$f":"COUNTIF(D15:D19,\">4\")","v":0},"5&6-scores",{"$f":"COUNTIF(F15:F19,\">4\")","v":0},"5&6-scores",{"$f":"COUNTIF(H15:H19,\">4\")","v":0}]
[]
["Insufficient self-control/self-discipline",null,"Entitlement/Superiority"]
["item","score","item","score"]
[15,{"$f":"Blad1!#REF!","v":{"$error":"#REF!"}},14,{"$f":"Blad1!#REF!","v":{"$error":"#REF!"}}]
[33,{"$f":"Blad1!#REF!","v":{"$error":"#REF!"}},32,{"$f":"Blad1!#REF!","v":{"$error":"#REF!"}}]
[51,{"$f":"Blad1!#REF!","v":{"$error":"#REF!"}},50,{"$f":"Blad1!#REF!","v":{"$error":"#REF!"}}]
[69,{"$f":"Blad1!#REF!","v":{"$error":"#REF!"}},68,{"$f":"Blad1!#REF!","v":{"$error":"#REF!"}}]
[87,{"$f":"Blad1!#REF!","v":{"$error":"#REF!"}},86,{"$f":"Blad1!#REF!","v":{"$error":"#REF!"}}]
["mean",{"$f":"AVERAGE(B25:B29)","v":{"$error":"#REF!"}},"mean",{"$f":"AVERAGE(D25:D29)","v":{"$error":"#REF!"}}]
["5&6-scores",{"$f":"COUNTIF(B25:B29,\">4\")","v":0},"5&6-scores",{"$f":"COUNTIF(D25:D29,\">4\")","v":0}]
[]
["Subjugation ",null,"Self-sacrifice",null,"Admiration/Recognition-seeking"]
["item","score","item","score","item","score"]
[10,{"$f":"Blad1!#REF!","v":{"$error":"#REF!"}},11,{"$f":"Blad1!#REF!","v":{"$error":"#REF!"}},16,{"$f":"Blad1!#REF!","v":{"$error":"#REF!"}}]
[28,{"$f":"Blad1!#REF!","v":{"$error":"#REF!"}},29,{"$f":"Blad1!#REF!","v":{"$error":"#REF!"}},34,{"$f":"Blad1!#REF!","v":{"$error":"#REF!"}}]
[46,{"$f":"Blad1!#REF!","v":{"$error":"#REF!"}},47,{"$f":"Blad1!#REF!","v":{"$error":"#REF!"}},52,{"$f":"Blad1!#REF!","v":{"$error":"#REF!"}}]
[64,{"$f":"Blad1!#REF!","v":{"$error":"#REF!"}},65,{"$f":"Blad1!#REF!","v":{"$error":"#REF!"}},70,{"$f":"Blad1!#REF!","v":{"$error":"#REF!"}}]
[82,{"$f":"Blad1!#REF!","v":{"$error":"#REF!"}},83,{"$f":"Blad1!#REF!","v":{"$error":"#REF!"}},88,{"$f":"Blad1!#REF!","v":{"$error":"#REF!"}}]
["mean",{"$f":"AVERAGE(B35:B39)","v":{"$error":"#REF!"}},"mean",{"$f":"AVERAGE(D35:D39)","v":{"$error":"#REF!"}},"mean",{"$f":"AVERAGE(F35:F39)","v":{"$error":"#REF!"}}]
["5&6-scores",{"$f":"COUNTIF(B35:B39,\">4\")","v":0},"5&6-scores",{"$f":"COUNTIF(D35:D39,\">4\")","v":0},"5&6-scores",{"$f":"COUNTIF(F35:F39,\">4\")","v":0}]
[]
["Pessimism/Worry",null,"Emotional inhibition",null,"Unrelenting Standards",null,"Self-punitiveness"]
["item","score","item","score","item","score","item","score"]
[17,{"$f":"Blad1!#REF!","v":{"$error":"#REF!"}},12,{"$f":"Blad1!#REF!","v":{"$error":"#REF!"}},13,{"$f":"Blad1!#REF!","v":{"$error":"#REF!"}},18,{"$f":"Blad1!#REF!","v":{"$error":"#REF!"}}]
[35,{"$f":"Blad1!#REF!","v":{"$error":"#REF!"}},30,{"$f":"Blad1!#REF!","v":{"$error":"#REF!"}},31,{"$f":"Blad1!#REF!","v":{"$error":"#REF!"}},36,{"$f":"Blad1!#REF!","v":{"$error":"#REF!"}}]
[53,{"$f":"Blad1!#REF!","v":{"$error":"#REF!"}},48,{"$f":"Blad1!#REF!","v":{"$error":"#REF!"}},49,{"$f":"Blad1!#REF!","v":{"$error":"#REF!"}},54,{"$f":"Blad1!#REF!","v":{"$error":"#REF!"}}]
[71,{"$f":"Blad1!#REF!","v":{"$error":"#REF!"}},66,{"$f":"Blad1!#REF!","v":{"$error":"#REF!"}},67,{"$f":"Blad1!#REF!","v":{"$error":"#REF!"}},72,{"$f":"Blad1!#REF!","v":{"$error":"#REF!"}}]
[89,{"$f":"Blad1!#REF!","v":{"$error":"#REF!"}},84,{"$f":"Blad1!#REF!","v":{"$error":"#REF!"}},85,{"$f":"Blad1!#REF!","v":{"$error":"#REF!"}},90,{"$f":"Blad1!#REF!","v":{"$error":"#REF!"}}]
["mean",{"$f":"AVERAGE(B45:B49)","v":{"$error":"#REF!"}},"mean",{"$f":"AVERAGE(D45:D49)","v":{"$error":"#REF!"}},"mean",{"$f":"AVERAGE(F45:F49)","v":{"$error":"#REF!"}},"mean",{"$f":"AVERAGE(H45:H49)","v":{"$error":"#REF!"}}]
["5&6-scores",{"$f":"COUNTIF(B45:B49,\">4\")","v":0},"5&6-scores",{"$f":"COUNTIF(D45:D49,\">4\")","v":0},"5&6-scores",{"$f":"COUNTIF(F45:F49,\">4\")","v":0},"5&6-scores",{"$f":"COUNTIF(H45:H49,\">4\")","v":0}]